fUSD/lending_fUSD_20240327
["ID","MTS","AMOUNT","RATE_DAILY","PERIOD"]
[320760908,1711547474788,-1182.73,0.00055613,120]
[320760909,1711547474804,-554.15,0.00055613,120]
[320760910,1711547474814,-500.0,0.00055613,120]
[320760911,1711547474824,-500.0,0.00055613,120]
[320760912,1711547474833,-547.48,0.00055613,120]
[320760913,1711547474843,-500.0,0.00055613,120]
[320760914,1711547474852,-539.4,0.00055613,120]
[320760915,1711547474861,-500.0,0.00055613,120]
[320760916,1711547474871,-500.0,0.00055613,120]
[320760917,1711547474883,-500.0,0.00055613,120]
[320760918,1711547474893,-500.0,0.00055613,120]
[320760919,1711547474903,-500.0,0.00055613,120]
[320760920,1711547474913,-433.9076366,0.00055615,31]
[320760921,1711547474923,-291.44846032,0.00055615,120]
[320760922,1711547474932,-211189.55645031,0.00055616,36]
[320760923,1711547474946,-156368.88088442,0.00055616,36]
[320760924,1711547474966,-2511.03143905,0.00055616,36]
[320760926,1711547483059,822.6,0.0001799,3]
[320760927,1711547486951,-2708483.94198816,0.00018,2]
[320760928,1711547487866,659.94399771,0.00017999,2]
[320760929,1711547488543,2000.0,0.00017999,2]
[320760930,1711547488914,240.34290626,0.00017999,2]
[320760931,1711547489437,337.63168072,0.00017999,2]
[320760932,1711547490341,3202.20159698,0.00017999,2]
[320760940,1711547544165,42385.56624122,0.00017999,2]
[320760941,1711547564162,42385.56624122,0.00017999,2]
[320760943,1711547630751,152.37788466,0.00039981,32]
[320760947,1711547705369,493.0,0.00019788,15]
[320760948,1711547705894,493.0,0.00019778,15]
[320760949,1711547706450,493.0,0.00019768,15]
[320760950,1711547708238,-3066.08279134,0.00017726,2]
[320760951,1711547708263,-1767.50813,0.00017727,2]
[320760952,1711547708295,-406.2273307,0.00017815,2]
[320760953,1711547708321,-250.1172744,0.00017816,2]
[320760954,1711547708348,-746.99221401,0.00017905,2]
[320760955,1711547708376,-325.44996838,0.00017905,2]
[320760956,1711547708403,-530.08303492,0.00017906,2]
[320760957,1711547708430,-166.40609062,0.00017906,2]
[320760958,1711547708455,-300.0,0.00017998,2]
[320760959,1711547708485,-150.0,0.00017998,2]
[320760960,1711547708510,-215.13254369,0.00017998,2]
[320760961,1711547708540,-17076.00062194,0.00017998,2]
[320760962,1711547824430,150.5,0.00019788,15]
[320760963,1711547824923,150.5,0.00019778,15]
[320760964,1711547825475,150.5,0.00019768,15]
[320760965,1711547826462,345.0,0.00019788,15]
[320760966,1711547826933,345.0,0.00019778,15]
[320760967,1711547827415,345.0,0.00019768,15]
[320760968,1711547829872,1833.62917226,0.00013499,2]
[320760969,1711547831103,1375.09854435,0.00017,5]
[320760970,1711547911437,598.83,0.00017988,3]
[320760971,1711547945175,242.0,0.00019628,15]
[320760972,1711547945800,242.0,0.00019618,15]
[320760973,1711547946438,242.0,0.00019608,15]
[320760975,1711548035086,349.5874428,0.00014706,2]
[320760976,1711548040802,300.0,0.000174,6]
[320760977,1711548042932,700.0,0.000175,6]
[320760978,1711548044020,151.54,0.00014085,2]
[320760979,1711548046141,1000.0,0.000176,6]
[320760980,1711548051080,1400.0,0.000177,6]
[320760981,1711548053191,1800.0,0.000178,6]
[320760982,1711548055280,300.0,0.000179,6]
[320760983,1711548065350,-277.47847021,0.00016184,2]
[320760984,1711548065376,-437.14473375,0.00016185,2]
[320760985,1711548065402,-406.2273307,0.00016186,2]
[320760986,1711548065427,-716.0,0.00016191,2]
[320760987,1711548065451,-789.44454929,0.00016196,2]
[320760988,1711548065479,-2334.27,0.00017607,2]
[320760989,1711548065504,-150.0,0.00017624,2]
[320760990,1711548065529,-4491.7512,0.00017625,2]
[320760991,1711548065554,-2004.7,0.00017685,2]
[320760992,1711548065580,-6537.01872336,0.00017898,2]
[320760993,1711548065608,-6204.55376722,0.00017898,2]
[320760994,1711548065635,-682.81296862,0.000179,2]
[320760995,1711548065660,-174.32527228,0.000179,2]
[320760996,1711548065686,-306.55578928,0.000179,2]
[320760997,1711548065710,-1400.06542188,0.000179,2]
[320760998,1711548065734,-183.64012444,0.000179,2]
[320760999,1711548065757,-573.64896954,0.000179,2]
[320761000,1711548065784,-3742.37145146,0.000179,2]
[320761001,1711548066004,-172.53,0.00017925,2]
[320761002,1711548066032,-2332.77,0.00017933,2]
[320761003,1711548066058,-167.30025943,0.0001799,2]
[320761004,1711548066084,-167.30025943,0.0001799,2]
[320761005,1711548066109,-167.30025943,0.0001799,2]
[320761006,1711548066134,-165.77964946,0.00017996,2]
[320761007,1711548066160,-2196.898419,0.00017996,2]
[320761008,1711548066185,-3647.86184773,0.00017996,2]
[320761009,1711548066211,-361.10221362,0.00017996,2]
[320761010,1711548066239,-260.7652174,0.00017996,2]
[320761011,1711548066263,-155.45967189,0.00017996,2]
[320761012,1711548066286,-1811.87188894,0.00017996,2]
[320761013,1711548066310,-268.00761418,0.00017996,2]
[320761014,1711548066336,-229.66414078,0.00017996,2]
[320761015,1711548066361,-1239.51049698,0.00017996,2]
[320761016,1711548066386,-1443.8692897,0.00017996,2]
[320761017,1711548066524,169.0,0.00019598,15]
[320761018,1711548066712,169.0,0.00019588,15]
[320761019,1711548067191,169.0,0.00019578,15]
[320761020,1711548093713,-3363.69415921,0.00016183,2]
[320761021,1711548093737,-784.19077975,0.00016184,2]
[320761022,1711548093765,-406.2273307,0.00016184,2]
[320761024,1711548095189,680.30955827,0.00016182,2]
[320761025,1711548113918,-21718.6348,0.00017523,2]
[320761026,1711548113945,-1218.58188732,0.00017606,2]
[320761027,1711548113970,-419.76,0.00017607,2]
[320761028,1711548113999,-499.99,0.00017898,2]
[320761029,1711548114027,-3350.83,0.00017898,2]
[320761030,1711548114051,-723.77013895,0.00017996,2]
[320761031,1711548114075,-202.96318192,0.00017996,2]
[320761032,1711548114100,-587.03925467,0.00017996,2]
[320761033,1711548114125,-373.35378441,0.00017996,2]
[320761034,1711548114149,-786.44708834,0.00017996,2]
[320761035,1711548114173,-358.50809905,0.00017996,2]
[320761036,1711548114198,-1377.6960158,0.00017996,2]
[320761037,1711548114222,-811.93028775,0.00017996,2]
[320761038,1711548114247,-591.35788153,0.00017997,2]
[320761039,1711548114275,-349.67104766,0.00017997,2]
[320761040,1711548114300,-16629.4665326,0.00017998,2]
[320761041,1711548127993,-6800.0,0.00017998,2]
[320761043,1711548185211,150.5,0.0001959,15]
[320761044,1711548185976,150.5,0.0001958,15]
[320761045,1711548186057,150.5,0.0001959,15]
[320761046,1711548186570,212.5,0.0001957,15]
[320761047,1711548186713,150.5,0.0001958,15]
[320761048,1711548187217,150.5,0.0001957,15]
[320761049,1711548195863,-406.48055709,0.00017458,2]
[320761050,1711548195894,-933.37694792,0.000179,2]
[320761051,1711548195928,-307.63048246,0.000179,2]
[320761052,1711548195962,-382.43264636,0.000179,2]
[320761053,1711548195993,-150.0,0.00017997,2]
[320761054,1711548196023,-11420.07936617,0.00017998,2]
[320761055,1711548305384,150.5,0.0001959,15]
[320761056,1711548305892,150.5,0.0001958,15]
[320761057,1711548306396,150.5,0.0001957,15]
[320761058,1711548330103,-400.0,0.00017457,2]
[320761059,1711548330124,-550.48359967,0.00017458,2]
[320761060,1711548330144,-157.83340314,0.00017798,2]
[320761061,1711548330167,-1402.71365188,0.00017798,2]
[320761062,1711548330187,-157.83340313,0.00017849,2]
[320761063,1711548330206,-547.62,0.00017862,2]
[320761064,1711548330225,-5886.60108667,0.00017898,2]
[320761065,1711548330243,-11760.574,0.00017898,2]
[320761066,1711548330262,-1000.0,0.00017898,2]
[320761067,1711548330282,-254.5727,0.00017898,2]
[320761068,1711548330301,-622.2512986,0.000179,2]
[320761069,1711548330319,-254.95509758,0.000179,2]
[320761070,1711548330337,-157.83340313,0.000179,2]
[320761071,1711548330358,-2655.83065047,0.000179,2]
[320761072,1711548330378,-547.62,0.00017911,2]
[320761073,1711548330397,-547.62,0.0001796,2]
[320761074,1711548330423,-7722.27451607,0.00017988,2]
[320761075,1711548330441,-186.45093788,0.00017996,2]
[320761076,1711548330460,-260.6615353,0.00017996,2]
[320761077,1711548330479,-325.84374229,0.00017996,2]
[320761078,1711548330498,-1952.13815227,0.00017997,2]
[320761079,1711548330517,-17128.61220476,0.00017998,2]
[320761080,1711548330865,170.51,0.00016712,2]
[320761081,1711548371384,1130.14343401,0.00016712,2]
[320761082,1711548372573,3654.19691551,0.00016712,2]
[320761083,1711548387383,1130.14343401,0.00016712,2]
[320761084,1711548390571,3654.19691551,0.00016712,2]
[320761085,1711548405389,515.4243073,0.00016712,2]
[320761086,1711548413510,1903.83659298,0.00016712,2]
[320761087,1711548424746,288.0,0.0001959,15]
[320761088,1711548425126,-6732.25610325,0.00017898,2]
[320761089,1711548431109,-8979.84491275,0.00017898,2]
[320761090,1711548431134,-472.9096,0.00017898,2]
[320761091,1711548431158,-307.63048246,0.000179,2]
[320761092,1711548431182,-414.83419908,0.000179,2]
[320761093,1711548431205,-169.97006504,0.000179,2]
[320761094,1711548431224,-400.0,0.00017997,2]
[320761095,1711548431249,-150.0,0.00017997,2]
[320761096,1711548431268,-21101.81655768,0.00017998,2]
[320761097,1711548432106,-114588.11235774,0.00017998,2]
[320761098,1711548434567,1903.83659298,0.00016712,2]
[320761099,1711548452598,1903.83659298,0.00016712,2]
[320761100,1711548466569,1903.83659298,0.00016712,2]
[320761102,1711548473075,-3005.669,0.00017258,2]
[320761103,1711548473096,-1561.331,0.00017798,2]
[320761104,1711548484587,1903.83659298,0.00016712,2]
[320761105,1711548502589,1903.83659298,0.00016712,2]
[320761106,1711548540020,949.37404731,0.00015876,2]
[320761109,1711548551165,-1072.37931161,0.00016111,2]
[320761110,1711548551188,-746.60142935,0.00016198,2]
[320761111,1711548551210,-406.48055709,0.00016211,2]
[320761112,1711548551230,-150.0,0.00016711,2]
[320761113,1711548551250,-1903.83659298,0.00016712,2]
[320761114,1711548551271,-295.41221015,0.00016712,2]
[320761115,1711548551292,-3210.99710035,0.00016712,2]
[320761116,1711548551316,-385.53735154,0.00016712,2]
[320761117,1711548551342,-89.38679741,0.00016712,2]
[320761118,1711548557877,949.37404731,0.00015876,2]
[320761119,1711548564223,-362.42414368,0.0001611,2]
[320761120,1711548564248,-450.21582317,0.0001611,2]
[320761121,1711548564271,-1280.79310922,0.0001611,2]
[320761122,1711548564297,-19490.30468401,0.00016712,2]
[320761123,1711548564321,-291.32964853,0.00016712,2]
[320761124,1711548564344,-334.82955143,0.00016712,2]
[320761125,1711548564368,-862.28398827,0.00016712,2]
[320761126,1711548564391,-317.77309168,0.00016712,2]
[320761127,1711548564415,-22029.08604342,0.00016712,2]
[320761128,1711548568114,-217.05486785,0.00016211,2]
[320761129,1711548568133,-601.0449943,0.00016712,2]
[320761132,1711548575868,949.37404731,0.00015876,2]
[320761133,1711548582408,362.42414368,0.00014398,2]
[320761134,1711548595872,949.37404731,0.00015876,2]
[320761137,1711548600411,362.42414368,0.00013369,2]
[320761138,1711548615898,444.08045881,0.00015876,2]
[320761139,1711548618407,168.28797463,0.00013369,2]
[320761184,1711548631705,-2444.36950136,0.00016711,2]
[320761188,1711548631736,-703.97039509,0.00016711,2]
[320761189,1711548631746,-31636.02960691,0.00016711,2]
[320761190,1711548631762,-19008.87423763,0.00016711,2]
[320761191,1711548631773,-19755.4352035,0.00016712,2]
[320761192,1711548631783,-1464.4092569,0.00016712,2]
[320761193,1711548631792,-1903.83659298,0.00016712,2]
[320761194,1711548631803,-295.41221015,0.00016712,2]
[320761195,1711548631814,-861.52776045,0.00016712,2]
[320761196,1711548631823,-26920.86934575,0.00016712,2]
[320761197,1711548631837,-3024.54625595,0.00016712,2]
[320761198,1711548631849,-20773.10122012,0.00016712,2]
[320761199,1711548631943,-6910.293,0.00016712,2]
[320761200,1711548632334,-12562.35187373,0.00016712,2]
[320761201,1711548632370,-416.50200427,0.00016712,2]
[320761202,1711548632389,-262445.57548851,0.00016712,2]
[320761203,1711548632402,-1025.22279037,0.00016712,2]
[320761204,1711548632414,-27510.97563901,0.00016712,2]
[320761205,1711548632438,-3386.65920034,0.00016712,2]
[320761206,1711548632450,-14747.33466355,0.00016712,2]
[320761207,1711548632466,-33595.68672412,0.00016712,2]
[320761208,1711548632479,-506828.24180941,0.00016712,2]
[320761209,1711548632489,-19579.69148142,0.00016712,2]
[320761210,1711548632498,-317.77309168,0.00016712,2]
[320761211,1711548632507,-247.01157723,0.00016712,2]
[320761212,1711548632516,-178.78555308,0.00016712,2]
[320761213,1711548632526,-1031.2102017,0.00016712,2]
[320761214,1711548632535,-450.21582317,0.00016918,2]
[320761215,1711548632544,-4399.1549,0.00017258,2]
[320761216,1711548632554,-5297.94097803,0.0001788,2]
[320761217,1711548632564,-307.63048246,0.000179,2]
[320761218,1711548632574,-276.55613272,0.000179,2]
[320761219,1711548632583,-17490.3521,0.000179,2]
[320761220,1711548632592,-222.6705156,0.00017998,2]
[320761221,1711548632602,-485.65085822,0.00017998,2]
[320761222,1711548632612,-6947.046,0.00017998,2]
[320761223,1711548632622,-646.1671822,0.00017998,2]
[320761224,1711548632635,-316454.93387558,0.00018,2]
[320761225,1711548632646,-10414.85,0.00018,2]
[320761226,1711548634699,-356.07526964,0.00018,2]
[320761227,1711548634710,-603.26280652,0.00018,2]
[320761274,1711548635108,1903.83659298,0.00013369,2]
[320761315,1711548637760,-450.21582317,0.0001671,2]
[320761317,1711548637771,-14334.21650758,0.00018,2]
[320761359,1711548638221,-181782.71079151,0.00018,2]
[320761361,1711548638235,-17510.71419252,0.00018,2]
[320761363,1711548638249,-5323.24122584,0.00018,2]
[320761365,1711548638263,-2496.51837229,0.00018,2]
[320761367,1711548638277,-3818.93317506,0.00018,2]
[320761373,1711548638331,-518.94569771,0.00018,2]
[320761376,1711548638348,-531.11528472,0.00018,2]
[320761379,1711548638368,-13803.0,0.00018,2]
[320761381,1711548638388,-9648.24,0.00018,2]
[320761384,1711548638403,-78739.99,0.00018,2]
[320761388,1711548638417,-12249.99999,0.00018,2]
[320761392,1711548638430,-103443.49977552,0.00018,2]
[320761395,1711548638442,-23212.477357,0.00018,2]
[320761398,1711548638456,-4976.58999999,0.00018,2]
[320761404,1711548638478,-395080.89783467,0.00018,2]
[320761407,1711548638490,-34692.41596378,0.00018,2]
[320761410,1711548638502,-2061.63958,0.00018,2]
[320761413,1711548638514,-944.38724346,0.00018,2]
[320761418,1711548638525,-2741279.48689067,0.00018,2]
[320761420,1711548638537,-690.37412,0.00018,2]
[320761434,1711548638604,-0.00305313,0.00018,2]
[320761437,1711548638620,-2064.5286776,0.00018,2]
[320761442,1711548638635,-4919.68527166,0.00018,2]
[320761445,1711548638646,-685.43887436,0.00018,2]
[320761448,1711548638659,-6886.64457,0.00018,2]
[320761451,1711548638670,-357.6776537,0.00018,2]
[320761527,1711548639076,-108003.18927283,0.00018,2]
[320761598,1711548639720,-3874.85540107,0.00018,2]
[320761599,1711548639733,-881375.0,0.00018,2]
[320761600,1711548639745,-910.86429768,0.00018,2]
[320761601,1711548639757,-2364.45953989,0.00018,2]
[320761602,1711548639768,-1404.98,0.00018,2]
[320761603,1711548639779,-310.500004,0.00018,2]
[320761604,1711548639795,-3768.0,0.00018,2]
[320761605,1711548639813,-1809568.23797112,0.00018,2]
[320761606,1711548639869,-201248.98956531,0.00018,2]
[320761607,1711548639948,-17252.45,0.00018,2]
[320761608,1711548640100,-196457.50733385,0.00018,2]
[320761609,1711548640111,-161.02408066,0.00018,2]
[320761610,1711548640122,-547.62,0.00018009,2]
[320761611,1711548640136,-547.62,0.00018058,2]
[320761612,1711548640147,-1646.26960352,0.000181,2]
[320761613,1711548640156,-547.62,0.00018107,2]
[320761614,1711548640166,-499.99,0.00018107,2]
[320761615,1711548640176,-547.62,0.00018156,2]
[320761616,1711548640186,-150.0,0.00018199,2]
[320761617,1711548640196,-160.0,0.00018203,2]
[320761618,1711548640205,-547.62,0.00018205,2]
[320761619,1711548640215,-547.62,0.00018254,2]
[320761620,1711548640224,-547.62,0.00018303,2]
[320761621,1711548640234,-1055.3,0.00018314,2]
[320761622,1711548640244,-547.62,0.00018352,2]
[320761623,1711548640253,-210.0,0.00018382,2]
[320761624,1711548640263,-547.62,0.00018401,2]
[320761626,1711548640272,-547.62,0.0001845,2]
[320761628,1711548640281,-547.62,0.00018499,2]
[320761630,1711548640291,-547.62,0.00018548,2]
[320761632,1711548640301,-547.62,0.00018597,2]
[320761634,1711548640310,-174.14,0.00018635,2]
[320761636,1711548640319,-547.62,0.00018646,2]
[320761637,1711548640330,-168.91,0.00018658,2]
[320761638,1711548640339,-547.62,0.00018695,2]
[320761640,1711548640348,-547.62,0.00018744,2]
[320761641,1711548640357,-547.62,0.00018793,2]
[320761642,1711548640367,-1274.41347738,0.0001899,2]
[320761643,1711548640376,-155.0,0.00019,2]
[320761645,1711548640390,-367.68342268,0.00019178,2]
[320761646,1711548640399,-500.0,0.00019178,2]
[320761647,1711548640410,-500.0,0.00019178,2]
[320761648,1711548640419,-3846.71319902,0.000192,2]
[320761649,1711548640429,-217.26316556,0.00019608,2]
[320761650,1711548640440,-935.37573969,0.00019608,2]
[320761651,1711548640449,-590.66898059,0.00019627,2]
[320761652,1711548640458,-1000.0,0.00019787,2]
[320761653,1711548640467,-173.9,0.000198,2]
[320761654,1711548640477,-194.92,0.000198,2]
[320761655,1711548640486,-151.91920864,0.000199,2]
[320761656,1711548640495,-3708.77772132,0.0002,2]
[320761657,1711548640504,-6653.0,0.0002,2]
[320761658,1711548640514,-3950.0,0.0002,2]
[320761659,1711548640523,-2342.08393912,0.0002,2]
[320761660,1711548640532,-854.93307856,0.0002,2]
[320761661,1711548640542,-1249.19045626,0.0002,2]
[320761662,1711548640551,-591.0994759,0.0002,2]
[320761663,1711548640560,-5297.94097799,0.00020188,2]
[320761664,1711548640569,-424.33,0.00020839,2]
[320761665,1711548640578,-175.66,0.00020869,2]
[320761666,1711548640587,-175.66,0.00020921,2]
[320761667,1711548640596,-175.66,0.00020973,2]
[320761668,1711548640605,-712.87217546,0.00021,2]
[320761669,1711548640613,-1459.51115478,0.00021,2]
[320761670,1711548640622,-4076.55,0.00021096,2]
[320761671,1711548640635,-2655.83065045,0.00021301,2]
[320761672,1711548640644,-250.0,0.00021324,2]
[320761673,1711548640653,-15712.10101591,0.00021443,2]
[320761674,1711548640662,-753.02,0.00021445,2]
[320761675,1711548640671,-1555.84,0.00021516,2]
[320761676,1711548640680,-23900.0,0.00021533,2]
[320761677,1711548640689,-1009.5,0.00021536,2]
[320761678,1711548640698,-250.0,0.00021568,2]
[320761679,1711548640707,-157.66,0.00021572,2]
[320761680,1711548640717,-573.06,0.00021584,2]
[320761681,1711548640727,-1000.0,0.00021584,2]
[320761682,1711548640736,-500.0,0.00021586,2]
[320761683,1711548640746,-500.0,0.00021605,2]
[320761684,1711548640755,-157.66,0.0002168,2]
[320761685,1711548640764,-2496.16,0.00021698,2]
[320761686,1711548640774,-172.53,0.0002171,2]
[320761687,1711548640783,-377.25,0.00021757,2]
[320761688,1711548640792,-168.91,0.00021767,2]
[320761689,1711548640802,-250.0,0.00021918,2]
[320761690,1711548640812,-644.17906747,0.00022,2]
[320761691,1711548640822,-1441.31996756,0.00022,2]
[320761692,1711548640831,-160.0,0.00022754,2]
[320761693,1711548640842,-200.0,0.00022842,2]
[320761694,1711548640852,-424.33,0.00023103,2]
[320761695,1711548640862,-180.0,0.0002353,2]
[320761696,1711548640872,-1921.96437535,0.0002354,2]
[320761697,1711548640885,-5297.94097799,0.00023765,2]
[320761698,1711548640894,-307.63048246,0.00023975,2]
[320761699,1711548640904,-223.94252704,0.00024,2]
[320761700,1711548640913,-150.02,0.00024149,2]
[320761701,1711548640923,-1555.84,0.00024256,2]
[320761702,1711548640932,-1000.0,0.00024282,2]
[320761703,1711548640942,-2655.83065045,0.00024702,2]
[320761704,1711548640952,-168.91,0.00024877,2]
[320761705,1711548640961,-15712.10101591,0.00024987,2]
[320761706,1711548640971,-155.0,0.00025,2]
[320761707,1711548640980,-2594.6177927,0.00025,2]
[320761708,1711548640991,-424.33,0.00025367,2]
[320761709,1711548641001,-155.0,0.00025425,30]
[320761710,1711548641010,-155.0,0.00026763,2]
[320761711,1711548641020,-322.07704381,0.00026763,2]
[320761712,1711548641030,-1000.0,0.0002698,2]
[320761713,1711548641042,-1555.84,0.00026995,2]
[320761714,1711548641052,-250.0,0.00027,3]
[320761715,1711548641064,-160.0,0.00027305,120]
[320761716,1711548641075,-1530.93,0.00027397,2]
[320761717,1711548641085,-150.0,0.00027397,2]
[320761718,1711548641094,-500.0,0.000274,7]
[320761719,1711548641103,-500.0,0.000274,7]
[320761720,1711548641114,-424.33,0.00027631,2]
[320761721,1711548641124,-168.91,0.00027987,2]
[320761722,1711548641139,-1020.26297848,0.00028,10]
[320761723,1711548641148,-2655.83065045,0.00028104,2]
[320761724,1711548641158,-150.0,0.00028118,2]
[320761725,1711548641167,-161.02408066,0.00028239,2]
[320761726,1711548641176,-15712.10101591,0.00028532,2]
[320761727,1711548641185,-150.0,0.00028839,2]
[320761728,1711548641194,-559.30829187,0.00029,2]
[320761729,1711548641204,-300.0,0.00029,3]
[320761730,1711548641214,-440.00922096,0.000295,3]
[320761731,1711548641224,-150.0,0.0002956,2]
[320761732,1711548641233,-1000.0,0.00029678,2]
[320761733,1711548641243,-424.33,0.00029895,2]
[320761734,1711548641252,-2633.36473626,0.0002999,2]
[320761735,1711548641262,-1502.04932574,0.0003,10]
[320761736,1711548641273,-596070.42843506,0.0003,4]
[320761737,1711548641286,-1799.9817598,0.0003,4]
[320761738,1711548641297,-1499.98758456,0.0003,4]
[320761739,1711548641435,-440.62064043,0.00019178,2]
[320761740,1711548641444,-53447.35566718,0.0003,4]
[320761741,1711548641457,-1584513.23155611,0.0003,4]
[320761742,1711548641466,-273.5962,0.0003,4]
[320761743,1711548641476,-753.02,0.00030022,2]
[320761744,1711548641486,-307.63048246,0.0003005,2]
[320761745,1711548641496,-150.0,0.00030281,2]
[320761746,1711548641505,-350.0,0.00031,3]
[320761747,1711548641515,-150.0,0.00031002,2]
[320761748,1711548641524,-419.61547823,0.00031106,4]
[320761749,1711548641533,-1736.72669976,0.0003111,2]
[320761750,1711548641542,-2655.83065045,0.00031505,3]
[320761751,1711548641553,-150.0,0.00031723,2]
[320761752,1711548641562,-15712.10101591,0.00032077,2]
[320761753,1711548641571,-424.33,0.00032159,2]
[320761754,1711548641581,-4076.55,0.00032329,2]
[320761755,1711548641590,-1000.0,0.00032376,2]
[320761756,1711548641600,-150.0,0.00032444,2]
[320761757,1711548641609,-331.4,0.00032548,15]
[320761758,1711548641619,-1353.0,0.000326,3]
[320761759,1711548641630,-320.0,0.000327,3]
[320761760,1711548641641,-2496.16,0.00032931,2]
[320761761,1711548641650,-424.0,0.00033,30]
[320761762,1711548641660,-400.0,0.00033,3]
[320761763,1711548641669,-304.0,0.00033005,120]
[320761764,1711548641678,-150.0,0.00033165,2]
[320761765,1711548641688,-150.0,0.00033886,2]
[320761766,1711548641698,-173.9,0.00034,2]
[320761767,1711548641707,-424.33,0.00034422,2]
[320761768,1711548641716,-150.0,0.00034607,2]
[320761769,1711548641726,-2655.83065045,0.00034906,7]
[320761770,1711548641736,-548.84635004,0.00034996,4]
[320761771,1711548641746,-235.35674052,0.00034996,4]
[320761772,1711548641756,-405.20786325,0.00034997,4]
[320761773,1711548641766,-280.33273345,0.00034997,4]
[320761774,1711548641776,-265.84716785,0.00034997,4]
[320761775,1711548641785,-450.0,0.00035,3]
[320761776,1711548641795,-331.4,0.00035288,15]
[320761777,1711548641805,-150.0,0.00035328,2]
[320761778,1711548641814,-19709.3952,0.00035512,2]
[320761779,1711548641824,-9070.358,0.00035512,2]
[320761780,1711548641834,-6918.8079,0.00035581,2]
[320761781,1711548641843,-1000.0,0.00035581,2]
[320761782,1711548641852,-7790.1667,0.00035581,2]
[320761783,1711548641861,-300.0,0.00035581,2]
[320761784,1711548641871,-15712.10101591,0.00035621,2]
[320761785,1711548641884,-155.1304162,0.00035679,4]
[320761786,1711548641894,-313.07259825,0.00035679,4]
[320761787,1711548641904,-155.98337894,0.00035679,4]
[320761788,1711548641914,-150.0,0.00036049,2]
[320761789,1711548641923,-307.63048246,0.00036125,2]
[320761790,1711548641933,-424.33,0.00036686,2]
[320761791,1711548641943,-150.0,0.0003677,2]
[320761792,1711548641953,-500.0,0.00037,3]
[320761793,1711548641962,-304.0,0.0003713,120]
[320761794,1711548641972,-464.69292032,0.00037283,4]
[320761795,1711548641982,-150.0,0.00037491,2]
[320761796,1711548641991,-320.40012619,0.00037888,4]
[320761797,1711548642000,-867.15561493,0.0003789,10]
[320761798,1711548642010,-331.4,0.00038027,15]
[320761799,1711548642019,-150.0,0.00038212,2]
[320761800,1711548642029,-2655.83065045,0.00038307,11]
[320761801,1711548642042,-1000.0,0.00038382,2]
[320761802,1711548642051,-161.02408066,0.00038479,2]
[320761803,1711548642061,-186.66881899,0.000388,44]
[320761804,1711548642070,-204.32377446,0.0003886,11]
[320761805,1711548642081,-400.28635015,0.0003888,2]
[320761806,1711548642091,-500.0,0.000389,2]
[320761807,1711548642101,-245000.0,0.000389,2]
[320761808,1711548642110,-1459.7919,0.000389,2]
[320761809,1711548642121,-1000.0,0.00038904,120]
[320761810,1711548642137,-150.0,0.00038933,2]
[320761811,1711548642146,-424.33,0.0003895,2]
[320761812,1711548642156,-550.0,0.00039,3]
[320761813,1711548642166,-15712.10101591,0.00039166,2]
[320761814,1711548642176,-600.0,0.000396,120]
[320761815,1711548642185,-1500.0,0.000396,30]
[320761816,1711548642195,-150.0,0.00039654,2]
[320761817,1711548642204,-167.21,0.00039814,2]
[320761818,1711548642214,-2749.00483996,0.00039832,2]
[320761819,1711548642223,-13951.20719775,0.00039832,3]
[320761820,1711548642234,-4000.0,0.00039832,3]
[320761821,1711548642244,-2000.04878563,0.00039832,2]
[320761822,1711548642254,-10589.30201825,0.00039832,7]
[320761823,1711548642264,-18910.34718355,0.00039832,3]
[320761824,1711548642273,-2143.05906408,0.00039832,14]